bitfinex-derivatives/quotes_SOLF0:USTF0_20251210
["timestamp","ask_amount","ask_price","bid_price","bid_amount"]
[1765399690963,6.4316,139.9,139.89,0.04531655]
[1765399691163,0.05379312,139.91,139.89,3.16531655]
[1765399691552,99.9653,140.01,139.9,3.12]
[1765399691757,5.42528014,139.99,139.91,3.12]
[1765399691957,11.85118014,140.02,139.92,3.12]
[1765399692258,99.9654,140.01,139.92,3.12]
[1765399692459,99.972,140.0,139.92,3.12]
[1765399692660,0.04944469,139.97,139.95,0.05388772]
[1765399693661,0.04944469,139.97,139.95,3.17388772]
[1765399694269,5.42528014,140.02,139.95,3.17388772]
[1765399694661,99.9659,140.01,139.95,3.17388772]
[1765399694859,99.9727,140.0,139.95,0.05388772]
[1765399695166,105.40498014,139.99,139.95,0.05388772]
[1765399695367,0.05370639,139.98,139.95,0.05388772]
[1765399695551,106.4216,139.97,139.95,0.05388772]
[1765399695752,100.0096,139.95,139.87,3.12]
[1765399696152,11.85398014,139.96,139.87,3.12]
[1765399696363,111.85468014,139.96,139.87,3.12]
[1765399696569,6.4287,139.96,139.87,3.12]
[1765399696867,0.04781967,139.93,139.9,3.16825926]
[1765399698359,6.4278,139.98,139.9,3.16825926]
[1765399698560,99.9946,139.97,139.9,3.16825926]
[1765399698859,105.41988014,139.97,139.9,3.16825926]
[1765399699160,105.39798014,140.0,139.9,3.16825926]
[1765399699463,99.9757,140.0,139.94,3.17085829]
[1765399699657,105.39808014,140.0,139.94,3.17085829]
[1765399700165,5.42528014,140.0,139.94,3.17085829]
[1765399700360,0.05439284,139.98,139.94,3.17085829]
[1765399700767,6.4252,140.04,139.96,3.12]
[1765399701269,6.4246,140.05,139.97,3.12]
[1765399701474,165.54948014,140.1,139.99,3.12]
[1765399701763,0.0458524,140.06,140.03,3.16690555]
[1765399704468,0.0458524,140.06,140.03,0.04690555]
[1765399704774,99.9505,140.03,139.93,3.12]
[1765399704967,99.9505,140.03,139.95,63.72]
[1765399705266,105.38338014,140.02,139.95,3.12]
[1765399705667,0.05239571,140.0,139.97,0.05483926]
[1765399705871,0.05239571,140.0,139.98,3.12]
[1765399706965,0.05239571,140.0,139.97,0.05483926]
[1765399707365,6.47939571,140.0,139.97,0.05483926]
[1765399707764,6.47939571,140.0,139.97,3.17483926]
[1765399707964,6.47939571,140.0,139.97,0.05483926]
[1765399708273,6.4275,139.99,139.97,0.05483926]
[1765399709071,6.4288,139.96,139.92,3.12]
[1765399709865,6.4279,139.98,139.92,3.12]
[1765399710168,0.05493631,139.96,139.94,0.0458277]
[1765399710672,0.05493631,139.96,139.94,3.1658277]
[1765399711063,9.47678133,140.03,139.94,3.1658277]
[1765399711259,99.965,140.01,139.94,3.12]
[1765399711565,99.9586,140.02,139.94,3.12]
[1765399712170,0.04837642,139.99,139.97,3.16669229]
[1765399712676,6.4256,140.03,139.97,3.16669229]
[1765399713172,9.47678133,140.09,139.99,3.12]
[1765399713570,0.05404853,140.05,140.02,0.05283274]
[1765399713869,6.4258,140.04,140.02,0.05283274]
[1765399714373,0.05404853,140.05,140.02,3.31283274]
[1765399715769,0.05404853,140.05,140.02,0.05283274]
[1765399716273,6.4257,140.04,140.02,0.05283274]
[1765399718883,9.47678133,140.03,139.93,63.84]
[1765399719076,9.47678133,140.03,139.94,3.26]
[1765399719280,6.4271,140.01,139.94,3.26]
[1765399719780,0.04814816,139.99,139.96,3.3069094]
[1765399720777,109.39878133,140.09,139.98,3.26]
[1765399721183,9.47678133,140.09,139.99,3.26]
[1765399721479,9.47678133,140.09,140.01,3.26]
[1765399721779,0.05094736,140.06,140.04,0.05413408]
[1765399722591,0.05094736,140.06,140.04,3.31413408]
[1765399722785,0.05094736,140.06,140.04,0.05413408]
[1765399724492,6.47574736,140.06,140.04,0.05413408]
[1765399724687,0.05094736,140.06,139.96,3.26]
[1765399724986,6.4261,140.03,139.96,3.26]
[1765399725480,99.9611,140.03,139.96,3.26]
[1765399725681,0.04625528,140.01,139.98,0.04518734]
[1765399725884,0.04866369,140.01,139.98,0.05300083]
[1765399726382,6.428,139.99,139.98,0.05300083]
[1765399727287,0.04866369,140.01,139.98,0.05300083]
[1765399727288,6.47586369,140.01,139.98,3.31300083]
[1765399727481,6.47586369,140.01,139.98,0.05300083]
[1765399728591,0.04866369,140.01,139.98,0.05300083]
[1765399729087,0.04866369,140.01,139.98,3.31300083]
[1765399730883,109.40358133,140.08,139.98,3.31300083]
[1765399731082,109.40358133,140.08,139.98,3.26]
[1765399731283,109.40358133,140.08,139.98,9.49251143]
[1765399731592,99.9323,140.07,139.98,9.49251143]
[1765399731785,0.04627766,140.04,140.01,0.05502938]
[1765399731994,6.4261,140.03,140.01,0.05502938]
[1765399732594,0.04627766,140.04,140.01,0.05502938]
[1765399733878,6.47197766,140.04,140.01,0.05502938]
[1765399734085,0.04627766,140.04,140.01,3.31502938]
[1765399734280,0.04627766,140.04,140.01,0.05502938]
[1765399734482,6.47197766,140.04,140.01,0.05502938]
[1765399735786,0.04627766,140.04,140.01,3.31502938]
[1765399735992,0.04627766,140.04,140.01,0.05502938]
[1765399736892,6.4261,140.03,140.01,0.05502938]
[1765399737488,0.04627766,140.04,140.01,3.31502938]
[1765399737690,1.24276837,140.1,140.02,3.26]
[1765399737892,109.37508133,140.12,140.04,3.26]
[1765399738100,109.37508133,140.12,140.04,9.49251143]
[1765399738287,6.423,140.1,140.06,3.26]
[1765399738789,6.423,140.1,140.07,0.05247008]
[1765399738790,0.0495693,140.09,140.07,0.05247008]
[1765399741090,6.4730693,140.09,140.07,0.05247008]
[1765399741594,6.425,140.06,140.03,6.23251143]
[1765399741789,6.425,140.06,140.02,3.26]
[1765399741790,99.9335,140.07,140.02,6.23251143]
[1765399742000,99.9427,140.06,140.01,6.23251143]
[1765399742295,160.1318,140.08,140.02,3.26]
[1765399742495,160.1318,140.08,140.02,9.49251143]
[1765399742700,0.05497253,140.06,140.04,0.05316529]
[1765399742895,0.05497253,140.06,139.97,8.49923]
[1765399742896,99.9608,140.03,139.97,8.49923]
[1765399743100,99.9608,140.03,139.96,8.49923]
[1765399743401,6.4276,140.0,139.96,8.49923]
[1765399743704,99.9824,140.0,139.96,8.49923]
[1765399743900,0.0483526,139.99,139.97,0.04675728]
[1765399744895,0.0483526,139.99,139.97,3.11675728]
[1765399745112,99.9411,140.06,139.98,3.07]
[1765399745395,60.2,140.07,140.01,3.07]
[1765399745801,99.9191,140.09,140.01,3.07]
[1765399746006,6.47237157,140.06,140.04,0.0527303]
[1765399746605,0.04747157,140.06,140.04,3.1227303]
[1765399747099,169.56728133,140.13,140.06,3.07]
[1765399747100,60.2,140.13,140.06,3.07]
[1765399747304,6.4221,140.12,140.06,3.07]
[1765399747509,6.4221,140.12,140.06,11.56923]
[1765399747705,6.4221,140.12,140.04,18.98877341]
[1765399747706,6.4221,140.12,140.07,3.07]
[1765399748105,0.05184305,140.11,140.08,3.11557413]
[1765399748309,0.05184305,140.11,140.08,11.61480413]
[1765399748605,99.8706,140.16,140.11,3.07]
[1765399748799,99.8706,140.16,140.03,109.43438133]
[1765399748800,99.8706,140.16,140.09,8.49923]
[1765399749199,99.8766,140.15,140.09,11.56923]
[1765399749511,0.04858114,140.13,140.11,0.04800892]
[1765399750403,6.4221,140.12,140.11,0.04800892]
[1765399752109,0.04858114,140.13,140.11,3.18800892]
[1765399752808,6.4202,140.16,140.11,3.18800892]
[1765399753009,99.8427,140.2,140.11,3.18800892]
[1765399753210,99.8488,140.19,140.12,3.14]
[1765399753910,0.05409244,140.17,140.14,0.04874318]
[1765399754109,6.4203,140.16,140.14,0.04874318]
[1765399755707,0.05409244,140.17,140.14,3.18874318]
[1765399755909,0.05409244,140.17,140.14,0.04874318]
[1765399756103,0.05409244,140.17,140.14,3.18874318]
[1765399758714,60.18,140.22,140.14,3.18874318]
[1765399758909,169.46298133,140.25,140.15,3.14]
[1765399759509,6.4175,140.22,140.15,3.14]
[1765399759711,0.04600498,140.2,140.17,0.05396567]
[1765399759917,0.04600498,140.2,140.17,3.19396567]
[1765399760616,9.47678133,140.19,140.17,0.05396567]
[1765399761611,99.88850498,140.2,140.17,0.05396567]
[1765399761612,0.04600498,140.2,140.17,0.05396567]
[1765399761815,0.04600498,140.2,140.17,3.19396567]
[1765399762917,169.42188133,140.28,140.18,3.14]
[1765399763210,209.00418133,140.31,140.19,3.14]
[1765399763610,6.4147,140.28,140.22,3.14]
[1765399763812,0.04549322,140.26,140.24,0.05419439]
[1765399764018,0.04741139,140.26,140.24,0.05419439]
[1765399765015,6.46301139,140.26,140.24,0.05419439]
[1765399768124,6.46301139,140.26,140.15,160.3921]
[1765399768125,99.8131,140.24,140.13,3.14]
[1765399768319,99.8217,140.23,140.13,3.14]
[1765399768924,99.8217,140.23,140.17,0.04903703]
[1765399769121,0.05133869,140.19,140.17,0.04903703]
[1765399769821,6.47013869,140.19,140.17,0.04903703]
[1765399771614,6.47013869,140.19,140.17,3.18903703]
[1765399771831,0.05133869,140.19,140.17,3.18903703]
[1765399772218,0.05133869,140.19,140.17,0.04903703]
[1765399773821,99.8627,140.17,140.09,3.14]
[1765399774723,0.04552256,140.14,140.12,3.26856377]
[1765399774923,0.04552256,140.14,140.12,0.04856377]
[1765399775443,6.46652256,140.14,140.12,0.04856377]
[1765399777228,0.04552256,140.14,140.12,0.04856377]
[1765399777931,0.04552256,140.14,140.12,3.26856377]
[1765399778523,5.42760255,140.17,140.12,3.26856377]
[1765399778725,5.42760255,140.2,140.13,3.22]
[1765399779231,5.42760255,140.17,140.09,9.6432]
[1765399779421,5.42760255,140.17,140.09,3.22]
[1765399779730,5.47266965,140.14,140.12,0.05211751]
[1765399780025,0.0450671,140.14,140.12,3.27211751]
[1765399780218,5.42760255,140.2,140.12,3.27211751]
[1765399780422,5.42760255,140.23,140.12,3.22]
[1765399781132,6.4179,140.21,140.14,3.22]
[1765399781326,0.04985942,140.19,140.16,3.27325181]
[1765399781829,121.0999,140.27,140.16,3.27325181]
[1765399781830,99.7899,140.27,140.16,3.27325181]
[1765399782122,105.21300255,140.28,140.17,3.22]
[1765399782431,105.23640255,140.25,140.17,3.22]
[1765399782723,11.84510255,140.22,140.14,60.52]
[1765399782930,0.05176261,140.19,140.17,0.04977238]
[1765399783325,0.05176261,140.19,140.17,3.26977238]
[1765399786433,0.00176261,140.19,140.17,3.26977238]
[1765399786835,0.00176261,140.19,140.17,4.68977238]
[1765399787035,0.00176261,140.19,140.18,3.22]
[1765399787925,0.00176261,140.19,140.18,11.71923]
[1765399788128,0.00176261,140.19,140.18,3.22]
[1765399788634,0.00176261,140.19,140.17,0.04977238]
[1765399789031,6.42076261,140.19,140.17,0.04977238]
[1765399789933,11.84836516,140.19,140.17,0.04977238]
[1765399790554,0.00176261,140.19,140.17,0.04977238]
[1765399792156,0.00176261,140.19,140.17,3.26977238]
[1765399793250,0.00176261,140.19,140.17,0.04977238]
[1765399793653,0.00176261,140.19,140.17,3.26977238]
[1765399794961,0.00176261,140.19,140.17,0.04977238]
[1765399796552,6.42056261,140.19,140.17,0.04977238]
[1765399798552,0.00176261,140.19,140.17,3.26977238]
[1765399799461,0.00176261,140.19,140.18,3.22]
[1765399799653,0.00176261,140.19,140.17,14.03324579]
[1765399799849,0.00176261,140.19,140.18,12.56347341]
[1765399800363,99.7543,140.32,140.19,99.8423]
[1765399800558,99.7543,140.32,140.18,5.42760255]
[1765399800559,99.77,140.3,140.24,8.61283853]
[1765399800857,99.7897,140.27,140.22,8.61283853]
[1765399801057,101.01084078,140.3,140.21,3.22]
[1765399801265,99.7994,140.26,140.21,8.61283853]
[1765399801464,99.7994,140.26,140.24,0.05222422]
[1765399801656,0.04853088,140.26,140.24,3.26583414]
[1765399801855,0.04853088,140.26,140.24,0.04583414]
[1765399802050,0.04853088,140.26,140.24,3.26583414]
[1765399802859,0.04853088,140.26,140.25,6.45592044]
[1765399803056,0.04853088,140.26,140.24,0.04583414]
[1765399803057,11.89183343,140.26,140.24,0.04583414]
[1765399803562,13.31183343,140.26,140.24,0.04583414]
[1765399803758,99.804,140.25,140.19,6.45592044]
[1765399804072,5.42760255,140.23,140.18,6.45592044]
[1765399804257,5.42760255,140.23,140.19,9.53592044]
[1765399804454,105.20740255,140.29,140.22,6.45592044]
[1765399804963,0.05130424,140.27,140.24,9.58236188]
[1765399805170,5.42760255,140.32,140.26,3.08]
[1765399805468,6.4134,140.31,140.25,6.45592044]
[1765399805666,60.14,140.38,140.26,3.08]
[1765399805966,6.4111,140.36,140.3,6.45592044]
[1765399806162,0.04328014,140.34,140.32,0.05018293]
[1765399807068,6.4138,140.3,140.27,6.45592044]
[1765399807272,105.17710255,140.33,140.26,9.53592044]
[1765399807469,99.7615,140.31,140.24,6.45592044]
[1765399807672,6.4148,140.28,140.24,3.08]
[1765399807864,6.4148,140.28,140.24,9.53592044]
[1765399808169,0.05225144,140.27,140.25,0.05243371]
[1765399808661,99.8018,140.26,140.2,6.45592044]
[1765399808861,5.42760255,140.25,140.2,6.45592044]
[1765399809069,6.4175,140.22,140.19,6.45592044]
[1765399809266,6.4175,140.22,140.18,3.01]
[1765399809662,0.05344139,140.21,140.19,0.04665131]
[1765399809963,0.05344139,140.21,140.2,3.01]
[1765399810160,5.42760255,140.28,140.21,3.01]
[1765399810368,5.42760255,140.28,140.21,6.45592044]
[1765399810564,99.791,140.27,140.2,6.45592044]
[1765399810763,5.42760255,140.25,140.19,6.45592044]
[1765399811267,0.05017191,140.23,140.21,0.05348262]
[1765399811459,6.4173,140.22,140.21,0.05348262]
[1765399812163,0.05017191,140.23,140.21,0.05348262]
[1765399812467,0.05017191,140.23,140.21,3.06348262]
[1765399813462,0.05017191,140.23,140.21,9.51940306]
[1765399813666,0.05017191,140.23,140.21,0.05348262]
[1765399815473,0.05017191,140.23,140.21,3.06348262]
[1765399815667,0.05017191,140.23,140.21,0.05348262]
[1765399815860,0.05017191,140.23,140.21,3.06348262]
[1765399816860,0.05017191,140.23,140.21,0.05348262]
[1765399817063,99.8394,140.2,140.16,6.45073663]
[1765399817262,99.8394,140.2,140.08,16.33207057]
[1765399817263,99.8551,140.18,140.11,9.72506853]
[1765399817476,99.8551,140.18,140.11,1.11223]
[1765399817673,6.4207,140.15,140.11,1.11223]
[1765399817975,0.05101368,140.14,140.12,0.04856387]
[1765399818177,0.05101368,140.14,140.12,3.05856387]
[1765399819575,0.05101368,140.14,140.12,0.04856387]
[1765399819981,0.05101368,140.14,140.12,3.05856387]
[1765399820274,6.419,140.19,140.12,3.05856387]
[1765399820476,5.42760255,140.2,140.13,3.01]
[1765399820880,159.9583,140.23,140.15,3.01]
[1765399820881,65.56760255,140.23,140.15,3.01]
[1765399821082,60.14,140.23,140.16,3.01]
[1765399821272,65.56760255,140.23,140.16,3.01]
[1765399821577,0.05359975,140.21,140.18,0.04566906]
[1765399821776,0.05359975,140.21,140.18,3.05566906]
[1765399822172,0.05359975,140.21,140.18,11.66850759]
[1765399822372,0.05359975,140.21,140.19,3.01]
[1765399823669,11.84330255,140.26,140.2,3.01]
[1765399823986,99.8065,140.25,140.17,11.62283853]
[1765399824279,99.8211,140.23,140.17,11.62283853]
[1765399824475,105.24870255,140.23,140.17,3.01]
[1765399824677,0.04132458,140.21,140.19,0.04717875]
[1765399825878,0.00132458,140.21,140.2,3.01]
[1765399827285,0.00132458,140.21,140.19,0.04717875]
[1765399827788,6.41922458,140.21,140.19,0.04717875]
[1765399828176,0.00132458,140.21,140.19,0.04717875]
[1765399830081,0.00132458,140.21,140.19,3.05717875]
[1765399830291,0.00132458,140.21,140.19,0.04717875]
[1765399831189,0.00132458,140.21,140.19,3.05717875]
[1765399831397,0.00132458,140.21,140.19,0.04717875]
[1765399831590,6.41932458,140.21,140.19,0.04717875]
[1765399831890,5.42760255,140.19,140.12,8.61283853]
[1765399832188,5.42760255,140.19,140.13,8.61283853]
[1765399832378,6.4197,140.17,140.13,11.62283853]
[1765399832893,109.24432429,140.27,140.18,3.01]
[1765399833190,109.26532429,140.24,140.16,8.61283853]
[1765399833386,6.4178,140.21,140.15,8.61283853]
[1765399833584,99.818,140.23,140.15,11.62283853]
[1765399833784,99.818,140.23,140.18,0.04716526]
[1765399834492,6.4183,140.2,140.18,0.04716526]
[1765399835979,99.7843,140.28,140.18,0.04716526]
[1765399835980,6.4176,140.22,140.19,3.09]
[1765399836188,6.4176,140.22,140.19,3.1370872]
[1765399836786,6.418,140.21,140.19,0.0470872]
[1765399837289,6.4171,140.23,140.19,0.0470872]
[1765399837794,6.4173,140.22,140.19,0.0470872]
[1765399838197,99.8193,140.23,140.19,0.0470872]
[1765399838489,6.418,140.21,140.19,0.0470872]
[1765399838885,17.29132429,140.21,140.19,0.0470872]
[1765399839081,77.45132429,140.21,140.19,0.0470872]
[1765399839879,6.4201,140.16,140.12,72.20283853]
[1765399840083,6.4201,140.16,140.12,63.59]
[1765399840681,6.4206,140.15,140.11,9.72506853]
[1765399840887,0.0470872,140.14,140.12,0.04907981]
[1765399841295,0.0470872,140.14,140.06,12.9192578]
[1765399841296,99.8926,140.13,140.05,8.61283853]
[1765399841496,99.8771,140.15,140.06,3.09]
[1765399841796,99.8771,140.15,140.06,11.70283853]
[1765399841998,6.4219,140.12,140.06,18.12733853]
[1765399842203,6.4219,140.12,140.06,3.09]
[1765399842403,0.04524235,140.1,140.08,0.05031999]
[1765399842696,6.46814235,140.1,140.08,0.05031999]
[1765399844604,6.4246,140.07,140.02,63.59]
[1765399844793,109.30942429,140.18,140.05,103.0309]
[1765399844988,109.28822429,140.21,140.09,103.0074]
[1765399845304,99.7956,140.27,140.18,3.09]
[1765399845601,0.05305813,140.24,140.21,3.14376677]
[1765399846296,6.4173,140.23,140.21,0.05376677]
[1765399846892,6.4178,140.21,140.17,3.09]
[1765399847093,99.827,140.22,140.14,3.09]
[1765399848106,0.05309898,140.19,140.17,0.04683376]
[1765399848696,6.47189898,140.19,140.17,0.04683376]
[1765399849203,0.05309898,140.19,140.17,0.04683376]
[1765399850499,6.4191,140.18,140.17,0.04683376]
[1765399850703,0.05309898,140.19,140.17,0.04683376]
[1765399851299,0.05309898,140.19,140.17,3.13683376]
[1765399852902,0.05309898,140.19,140.17,0.04683376]
[1765399854106,6.47179898,140.19,140.17,0.04683376]
[1765399854505,0.05309898,140.19,140.17,0.04683376]
[1765399855608,6.47199898,140.19,140.17,0.04683376]
[1765399857007,6.4202,140.16,140.1,72.22283853]
[1765399857609,6.4202,140.16,140.1,63.61]
[1765399857802,6.4202,140.16,140.1,72.22283853]
[1765399858111,0.04733023,140.14,140.12,0.05325097]
[1765399858312,0.04733023,140.14,140.12,3.14325097]
[1765399859714,6.4193,140.18,140.12,3.14325097]
[1765399860504,169.46302429,140.19,140.12,0.05325097]
[1765399860705,0.04832963,140.17,140.12,3.14325097]
[1765399861409,99.91242963,140.17,140.12,0.05325097]
[1765399861603,99.8764,140.15,140.12,0.05325097]
[1765399861803,99.8764,140.15,140.05,8.61283853]
[1765399861998,6.4234,140.09,140.05,8.61283853]
[1765399862204,99.918,140.09,140.01,8.61283853]
[1765399862603,6.425,140.06,140.0,11.70283853]
[1765399862909,0.05002732,140.04,140.02,0.04872573]
[1765399863115,0.05301348,140.04,140.02,0.04872573]
[1765399863915,0.05301348,140.04,139.97,60.52]
[1765399863916,6.4266,140.02,139.97,60.52]
[1765399864121,99.9683,140.02,139.94,11.70283853]
[1765399864308,99.9683,140.02,139.94,3.09]
[1765399864909,6.48100645,139.99,139.97,0.04924266]
[1765399865104,100.011,139.96,139.87,8.61283853]
[1765399865313,100.0202,139.95,139.85,3.15]
[1765399865512,66.6106,139.94,139.85,3.15]
[1765399865818,100.0329,139.93,139.85,3.15]
[1765399866012,99.9916,139.99,139.86,100.0819]
[1765399866217,0.04516726,139.94,139.91,3.20313558]
[1765399866413,0.04671229,139.94,139.91,3.19736829]
[1765399866720,0.04671229,139.94,139.91,0.04736829]
[1765399866915,0.04671229,139.94,139.91,3.19736829]
[1765399867514,60.2,140.0,139.91,3.19736829]
[1765399867719,60.2,140.0,139.92,3.15]
[1765399867912,66.6277,140.0,139.92,3.15]
[1765399868510,0.04585372,139.97,139.95,0.04550329]
[1765399868815,0.04585372,139.97,139.95,3.19550329]
[1765399869111,60.2,140.05,139.95,4.61550329]
[1765399869321,60.2,140.05,139.96,3.15]
[1765399870016,0.04972266,140.02,139.99,3.31139855]
[1765399870314,0.04972266,140.02,139.99,0.05139855]
[1765399870516,0.04972266,140.02,139.99,3.31139855]
[1765399870718,99.9331,140.07,139.99,3.31139855]
[1765399870919,99.9331,140.07,139.95,3.26]
[1765399871115,99.951,140.05,139.95,3.26]
[1765399871322,6.4258,140.04,139.95,3.26]
[1765399871521,99.9537,140.04,139.95,3.26]
[1765399871722,0.05163899,140.01,139.98,3.31015015]
[1765399871924,60.22,140.06,139.98,3.31015015]
[1765399872324,6.4251,140.05,139.98,3.31015015]
[1765399872622,99.947,140.05,139.98,3.31015015]
[1765399872922,0.0529252,140.03,139.98,3.31015015]
[1765399873320,100.0165252,140.03,139.98,0.05015015]
[1765399873521,6.4278,139.99,139.98,0.05015015]
[1765399873724,100.0036,139.97,139.9,3.26]
[1765399873922,100.0036,139.97,139.88,60.56]
[1765399873923,100.0177,139.95,139.88,60.56]
[1765399874123,100.0257,139.94,139.88,60.56]
[1765399874319,100.0257,139.94,139.86,3.26]
[1765399874722,0.04726225,139.91,139.89,0.05326053]
[1765399875326,6.4313,139.92,139.89,0.05326053]
[1765399875530,6.4313,139.92,139.82,67.0155]
[1765399875531,100.0392,139.92,139.82,70.2755]
[1765399875730,100.0356,139.93,139.83,3.26]
[1765399876225,100.0645,139.89,139.78,3.26]
[1765399876624,0.04579523,139.85,139.82,0.05183644]
[1765399877129,0.04579523,139.85,139.73,100.169]
[1765399877130,100.0969,139.84,139.74,3.26]
[1765399877325,100.0966,139.84,139.74,3.26]
[1765399877526,9.45332429,139.88,139.77,3.26]
[1765399877721,100.0458,139.92,139.8,103.3836]
[1765399878027,191.43442416,139.93,139.85,0.04823294]
[1765399878326,0.04691516,139.9,139.85,3.30823294]
[1765399878626,0.04691516,139.9,139.85,0.04823294]
[1765399879020,0.04691516,139.9,139.85,3.30823294]
[1765399880430,0.04691516,139.9,139.85,0.04823294]
[1765399880827,0.04691516,139.9,139.85,3.30823294]
[1765399881430,0.04691516,139.9,139.85,0.04823294]
[1765399882226,100.0686,139.88,139.77,63.84]
[1765399882429,109.52852429,139.87,139.78,3.26]
[1765399882628,160.323,139.89,139.78,3.26]
[1765399883228,0.05105062,139.85,139.82,0.054823]
[1765399883424,0.05105062,139.85,139.82,3.314823]
[1765399883623,100.0189,139.95,139.83,3.26]
[1765399883835,121.11439152,139.95,139.85,3.26]
[1765399884026,169.73872429,139.97,139.85,3.26]
[1765399884525,6.4304,139.94,139.86,3.26]
[1765399884728,6.4304,139.94,139.89,0.04514909]
[1765399884729,0.04540756,139.91,139.89,0.04514909]
[1765399885528,6.47710756,139.91,139.89,0.04514909]
[1765399885737,100.0753,139.87,139.8,3.26]
[1765399885932,100.0831,139.86,139.75,63.88]
[1765399886133,109.55542429,139.84,139.75,3.26]
[1765399886337,100.1109,139.82,139.75,3.26]
[1765399886636,100.1475,139.77,139.67,3.26]
[1765399886945,0.04902626,139.73,139.71,0.04899686]
[1765399887638,0.04902626,139.73,139.64,3.26]
[1765399887836,100.1588,139.76,139.64,3.26]
[1765399888135,100.1621,139.75,139.64,3.26]
[1765399888335,9.45332429,139.76,139.64,3.26]
[1765399888539,85.72,139.97,139.6,3.26]
[1765399888540,100.2152,139.68,139.6,3.26]
[1765399888742,100.1903,139.71,139.6,3.26]
[1765399889035,9.45332429,139.73,139.64,3.26]
[1765399889036,0.05463256,139.65,139.64,3.26]
[1765399889241,100.149,139.77,139.65,3.26]
[1765399889624,100.1341,139.79,139.67,3.26]
[1765399889836,100.1507,139.77,139.67,3.26]
[1765399890037,100.143,139.78,139.67,3.26]
[1765399890340,109.58522429,139.8,139.64,3.26]
[1765399890341,100.1787,139.73,139.64,3.26]
[1765399890541,100.214,139.68,139.59,3.26]
[1765399890729,106.6564,139.68,139.59,3.26]
[1765399890928,106.6564,139.68,139.56,6.4474]
[1765399890929,9.45332429,139.68,139.53,88.98]
[1765399891133,100.2583,139.62,139.54,3.26]
[1765399891528,0.05305842,139.59,139.57,0.05164639]
[1765399891738,109.66602429,139.68,139.57,3.31164639]
[1765399891940,100.1755,139.73,139.57,3.31164639]
[1765399891941,109.63942429,139.72,139.6,3.26]
[1765399892239,100.1998,139.7,139.6,3.26]
[1765399892430,100.1762,139.73,139.62,3.26]
[1765399892939,0.05066412,139.69,139.66,0.05341742]
[1765399893629,100.2216,139.67,139.58,3.26]
[1765399893834,169.98072429,139.69,139.58,3.26]
[1765399894038,176.42242429,139.69,139.58,3.26]
[1765399894339,100.1929,139.71,139.61,3.28]
[1765399894526,100.2285,139.66,139.56,3.28]
[1765399894732,5.47181997,139.65,139.56,3.28]
[1765399894944,100.2437,139.64,139.56,3.28]
[1765399895141,105.71551997,139.64,139.56,3.28]
[1765399895345,5.47181997,139.64,139.56,3.28]
[1765399895638,0.0470197,139.61,139.59,0.05398334]
[1765399895842,0.04766931,139.61,139.59,0.05398334]
[1765399897241,0.04766931,139.61,139.59,3.33398334]
[1765399898129,0.04766931,139.61,139.53,3.28]
[1765399898339,5.47181997,139.57,139.48,3.28]
[1765399898843,100.2795,139.59,139.48,3.28]
[1765399898844,5.47181997,139.59,139.49,3.28]
[1765399899138,5.47181997,139.6,139.49,3.28]
[1765399899437,100.2401,139.64,139.48,100.3504]
[1765399899438,5.47181997,139.63,139.53,3.33409116]
[1765399899640,65.83181997,139.66,139.55,3.28]
[1765399899826,65.83181997,139.66,139.56,3.28]
[1765399900231,65.83181997,139.66,139.57,3.28]
[1765399900232,60.36,139.66,139.57,3.28]
[1765399900430,60.36,139.66,139.56,100.2958]
[1765399900431,0.04752229,139.63,139.6,0.04507284]
[1765399900630,105.76624226,139.63,139.6,0.04507284]
[1765399900830,100.2627,139.61,139.51,3.28]
[1765399901040,105.76624226,139.63,139.51,3.28]
[1765399901041,11.91661997,139.63,139.53,3.28]
[1765399901242,5.47181997,139.63,139.53,3.28]
[1765399901545,5.47181997,139.6,139.5,3.28]
[1765399901842,0.05383127,139.56,139.54,0.0462259]
[1765399902042,106.80133127,139.56,139.54,0.0462259]
[1765399902246,106.80133127,139.56,139.45,7.69973303]
[1765399902247,100.3072,139.55,139.45,3.28]
[1765399902440,100.3117,139.54,139.45,3.28]
[1765399902645,5.47181997,139.48,139.4,6.48014719]
[1765399902836,105.85141997,139.45,139.4,3.20014719]